[Event "-chT Youth Countries 2019"]
[Site "Wuerzburg"]
[Date "2019.10.05"]
[Round "6.7"]
[White "Yue, Qizhou"]
[Black "Bungarten, Jona"]
[Result "1/2-1/2"]
[ECO "D43"]
[WhiteElo "1810"]
[BlackElo "1669"]
[Annotator "NA"]
[PlyCount "42"]
[EventDate "2019.10.02"]
[EventType "team-tourn"]
[EventRounds "7"]
[EventCountry "GER"]
[SourceTitle "playchess.com"]
[Source "ChessBase"]
[SourceQuality "1"]
[WhiteTeam "Rheinland-Pfalz"]
[BlackTeam "Nordrhein-Westfalen"]
[TimeControl "40/5400+30:1800+30"]

1. d4 {[%emt 0:00:00]} d5 {[%emt 0:00:00]} 2. c4 {[%emt 0:00:00]} e6 {[%emt 0:00:00]} 3. Nf3 {[%emt 0:00:00]} Nf6 {[%emt 0:00:07]} 4. Nc3 {[%emt 0:00:00]} c6 {[%emt 0:00:46]} 5. Bg5 {[%emt 0:00:09]} Be7 {[%emt 0:00:13]} 6. e3 {[%emt 0:00:14]} O-O {[%emt 0:00:18]} 7. Qc2 {[%emt 0:00:27]} Nbd7 {[%emt 0:00:21]} 8. cxd5 {[%emt 0:01:35]} exd5 {[%emt 0:01:45]} 9. Bd3 {[%emt 0:01:16]} h6 {[%emt 0:01:32]} 10. Bf4 {[%emt 0:00:32]} Re8 {[%emt 0:01:28]} 11. h3 {[%emt 0:00:44]} Nf8 {[%emt 0:00:21]} 12. g4 {[%emt 0:07:55]} Ne6 {[%emt 0:01:19]} 13. O-O-O {[%emt 0:05:57]} a5 {[%emt 0:05:18]} 14. Rdg1 {[%emt 0:02:31]} b5 {[%emt 0:03:30]} 15. g5 {[%emt 0:03:28]} hxg5 {[%emt 0:00:11]} 16. Bxg5 {[%emt 0:05:48]} Nxg5 {[%emt 0:04:00]} 17. Nxg5 {[%emt 0:01:03]} a4 {[%emt 0:03:18]} 18. Bh7+ {[%emt 0:09:21]} Kf8 {[%emt 0:03:03]} 19. Nxf7 {[%emt 0:01:18]} Kxf7 {[%emt 0:01:37]} 20. Qg6+ {[%emt 0:04:27]} Ke6 {[%emt 0:00:07]} 21. Qf5+ {[%emt 0:16:04]} Kf7 {[%emt 0:01:07] normal} 1/2-1/2

[Event "-chT Youth Countries 2019"]
[Site "Wuerzburg"]
[Date "2019.10.05"]
[Round "6.7"]
[White "Bock, Marlon"]
[Black "Ensslinger, Colin"]
[Result "1/2-1/2"]
[ECO "A47"]
[WhiteElo "1671"]
[BlackElo "1687"]
[Annotator "NA"]
[PlyCount "57"]
[EventDate "2019.10.02"]
[EventType "team-tourn"]
[EventRounds "7"]
[EventCountry "GER"]
[SourceTitle "playchess.com"]
[Source "ChessBase"]
[SourceQuality "1"]
[WhiteTeam "Thüringen"]
[BlackTeam "Team Süd"]
[TimeControl "40/5400+30:1800+30"]

1. d4 {[%emt 0:00:00]} Nf6 {[%emt 0:00:00]} 2. Nf3 {[%emt 0:00:00]} b6 {[%emt 0:00:00]} 3. e3 {[%emt 0:00:00]} Bb7 {[%emt 0:00:00]} 4. Bd3 {[%emt 0:00:20]} e6 {[%emt 0:00:03]} 5. O-O {[%emt 0:00:53]} d5 {[%emt 0:00:54]} 6. b3 {[%emt 0:00:50]} Bd6 {[%emt 0:00:08]} 7. Bb2 {[%emt 0:01:09]} O-O {[%emt 0:00:12]} 8. Ne5 {[%emt 0:01:43]} Nbd7 {[%emt 0:02:27]} 9. f4 {[%emt 0:01:04]} Ne4 {[%emt 0:00:59]} 10. Nd2 {[%emt 0:01:11]} f5 {[%emt 0:01:21]} 11. c4 {[%emt 0:03:03]} Ndf6 {[%emt 0:00:35]} 12. Qe2 {[%emt 0:04:12]} Qe7 {[%emt 0:01:55]} 13. cxd5 {[%emt 0:04:17]} Nxd2 {[%emt 0:01:10]} 14. Qxd2 {[%emt 0:00:35]} Bxd5 {[%emt 0:00:07]} 15. Bc4 {[%emt 0:03:13]} Ne4 {[%emt 0:01:07]} 16. Qe2 {[%emt 0:01:43]} Bxe5 {[%emt 0:00:48]} 17. Bxd5 {[%emt 0:06:01]} exd5 {[%emt 0:00:07]} 18. fxe5 {[%emt 0:00:52]} Rab8 {[%emt 0:04:19]} 19. a4 {[%emt 0:02:49]} Qd7 {[%emt 0:15:35]} 20. b4 {[%emt 0:15:22]} c6 {[%emt 0:01:16]} 21. Rac1 {[%emt 0:15:42]} Rbc8 {[%emt 0:00:15]} 22. Ba3 {[%emt 0:03:06]} Rfe8 {[%emt 0:06:30]} 23. Qb2 {[%emt 0:03:10]} g6 {[%emt 0:02:02]} 24. Rfd1 {[%emt 0:00:51]} b5 {[%emt 0:02:08]} 25. a5 {[%emt 0:02:49]} a6 {[%emt 0:03:25]} 26. Rf1 {[%emt 0:00:40]} Qe7 {[%emt 0:04:16]} 27. Qe2 {[%emt 0:01:48]} Qg5 {[%emt 0:03:12]} 28. Rc2 {[%emt 0:01:59]} Kg7 {[%emt 0:01:20]} 29. Qf3 {[%emt 0:01:52] normal} 1/2-1/2

[Event "-chT Youth Countries 2019"]
[Site "Wuerzburg"]
[Date "2019.10.05"]
[Round "6.7"]
[White "Sperling, Niclas"]
[Black "Buchholz, Maja"]
[Result "1-0"]
[ECO "C00"]
[WhiteElo "1656"]
[BlackElo "1671"]
[Annotator "NA"]
[PlyCount "101"]
[EventDate "2019.10.02"]
[EventType "team-tourn"]
[EventRounds "7"]
[EventCountry "GER"]
[SourceTitle "playchess.com"]
[Source "ChessBase"]
[SourceQuality "1"]
[WhiteTeam "Brandenburg/Berlin"]
[BlackTeam "Hessen"]
[TimeControl "40/5400+30:1800+30"]

1. e4 {[%emt 0:00:00]} e6 {[%emt 0:00:00]} 2. d4 {[%emt 0:00:00]} d5 {[%emt 0:00:00]} 3. Bd3 {[%emt 0:00:00]} dxe4 {[%emt 0:00:00]} 4. Bxe4 {[%emt 0:00:00]} c5 {[%emt 0:00:02]} 5. Ne2 {[%emt 0:00:06]} Nc6 {[%emt 0:00:14]} 6. Be3 {[%emt 0:00:25]} cxd4 {[%emt 0:01:01]} 7. Nxd4 {[%emt 0:00:08]} Ne5 {[%emt 0:00:33]} 8. Nc3 {[%emt 0:02:23]} Nf6 {[%emt 0:01:06]} 9. Bf3 {[%emt 0:00:05]} Bc5 {[%emt 0:02:00]} 10. Ndb5 {[%emt 0:06:51]} Nxf3+ {[%emt 0:11:30]} 11. Qxf3 {[%emt 0:00:36]} Qb6 {[%emt 0:02:01]} 12. Rd1 {[%emt 0:12:40]} O-O {[%emt 0:02:26]} 13. Rd6 {[%emt 0:03:13]} Bxe3 {[%emt 0:13:23]} 14. Rxb6 {[%emt 0:00:14]} Bxb6 {[%emt 0:00:10]} 15. O-O {[%emt 0:00:46]} Rd8 {[%emt 0:03:23]} 16. Na3 {[%emt 0:19:21]} Rb8 {[%emt 0:02:52]} 17. Ne4 {[%emt 0:05:56]} Nxe4 {[%emt 0:05:26]} 18. Qxe4 {[%emt 0:00:04]} Bd7 {[%emt 0:00:43]} 19. c3 {[%emt 0:08:11]} Bc6 {[%emt 0:04:36]} 20. Qc2 {[%emt 0:06:23]} Rd5 {[%emt 0:02:00]} 21. Nc4 {[%emt 0:04:02]} Rg5 {[%emt 0:10:13]} 22. g3 {[%emt 0:00:54]} Bb5 {[%emt 0:01:58]} 23. Qe4 {[%emt 0:07:56]} Rf5 {[%emt 0:08:06]} 24. a4 {[%emt 0:08:02]} Bc6 {[%emt 0:08:28]} 25. Qc2 {[%emt 0:00:19]} Bc5 {[%emt 0:01:40]} 26. b4 {[%emt 0:00:50]} Be7 {[%emt 0:00:27]} 27. Rd1 {[%emt 0:01:52]} Bf3 {[%emt 0:00:37]} 28. Rd7 {[%emt 0:00:41]} Bf8 {[%emt 0:01:08]} 29. Ne3 {[%emt 0:05:13]} Rf6 {[%emt 0:00:37]} 30. Qd3 {[%emt 0:01:58]} Bc6 {[%emt 0:03:19]} 31. Rd8 {[%emt 0:00:04]} Rxd8 {[%emt 0:00:18]} 32. Qxd8 {[%emt 0:00:02]} Bxa4 {[%emt 0:00:35]} 33. Qb8 {[%emt 0:00:26]} Bc6 {[%emt 0:00:49]} 34. Qxa7 {[%emt 0:00:16]} h5 {[%emt 0:01:04]} 35. h4 {[%emt 0:01:49]} Bd6 {[%emt 0:01:15]} 36. Nc4 {[%emt 0:02:27]} Bc7 {[%emt 0:00:24]} 37. Qa8+ {[%emt 0:01:27]} Kh7 {[%emt 0:00:28]} 38. Qc8 {[%emt 0:00:06]} Bxg3 {[%emt 0:00:29]} 39. fxg3 {[%emt 0:00:23]} Rf3 {[%emt 0:00:20]} 40. Ne5 {[%emt 0:02:09]} Rxg3+ {[%emt 0:00:27]} 41. Kf2 {[%emt 0:30:23]} Rxc3 {[%emt 0:30:18]} 42. Nxc6 {[%emt 0:00:00]} bxc6 {[%emt 0:00:00]} 43. b5 {[%emt 0:00:00]} Rh3 {[%emt 0:00:00]} 44. b6 {[%emt 0:00:00]} Rxh4 {[%emt 0:00:00]} 45. b7 {[%emt 0:00:00]} Rf4+ {[%emt 0:00:00]} 46. Ke3 {[%emt 0:00:00]} g5 {[%emt 0:00:00]} 47. b8=Q {[%emt 0:00:00]} Kg6 {[%emt 0:00:00]} 48. Qg8+ {[%emt 0:00:00]} Kf6 {[%emt 0:00:00]} 49. Qbd8+ {[%emt 0:00:00]} Ke5 {[%emt 0:00:00]} 50. Qgxg5+ {[%emt 0:00:00]} f5 {[%emt 0:00:00]} 51. Qxf4# {normal} 1-0

[Event "-chT Youth Countries 2019"]
[Site "Wuerzburg"]
[Date "2019.10.05"]
[Round "6.7"]
[White "Schulz, Hannah"]
[Black "Kempe, Caius Emilian"]
[Result "0-1"]
[ECO "B35"]
[WhiteElo "1554"]
[BlackElo "1835"]
[Annotator "NA"]
[PlyCount "44"]
[EventDate "2019.10.02"]
[EventType "team-tourn"]
[EventRounds "7"]
[EventCountry "GER"]
[SourceTitle "playchess.com"]
[Source "ChessBase"]
[SourceQuality "1"]
[WhiteTeam "Baden 1"]
[BlackTeam "Sachsen"]
[TimeControl "40/5400+30:1800+30"]

1. e4 {[%emt 0:00:00]} c5 {[%emt 0:00:00]} 2. Nf3 {[%emt 0:00:00]} Nc6 {[%emt 0:00:00]} 3. d4 {[%emt 0:00:00]} cxd4 {[%emt 0:00:00]} 4. Nxd4 {[%emt 0:00:00]} Nf6 {[%emt 0:00:05]} 5. Nc3 {[%emt 0:01:02]} g6 {[%emt 0:00:05]} 6. Be3 {[%emt 0:00:33]} Bg7 {[%emt 0:00:04]} 7. Bc4 {[%emt 0:00:36]} O-O {[%emt 0:00:06]} 8. Bb3 {[%emt 0:00:11]} Re8 {[%emt 0:00:09]} 9. f3 {[%emt 0:00:09]} e6 {[%emt 0:00:08]} 10. f4 {[%emt 0:00:05]} d6 {[%emt 0:00:13] unterminated} 11. Qf3 $11 {[%emt 0:01:12]} Nxd4 {[%emt 0:20:09]} 12. Bxd4 {[%emt 0:00:17]} e5 {[%emt 0:01:01]} 13. Be3 {[%emt 0:02:03]} Qa5 {[%emt 0:05:13]} 14. O-O-O {[%emt 0:01:27]} Bg4 {[%emt 0:01:23]} 15. Qf2 {[%emt 0:01:29]} Bxd1 {[%emt 0:00:36]} 16. Rxd1 {[%emt 0:00:09]} exf4 17. Qxf4 {[%emt 0:00:39]} Qe5 {[%emt 0:03:08]} 18. Rxd6 {[%emt 0:01:42]} Qxf4 {[%emt 0:02:53]} 19. Bxf4 {[%emt 0:00:07]} Nxe4 {[%emt 0:00:17]} 20. Nxe4 {[%emt 0:00:34]} Rxe4 {[%emt 0:00:14]} 21. Bg3 {[%emt 0:00:44]} Rae8 {[%emt 0:04:23]} 22. Bd5 {[%emt 0:01:29]} Bh6+ {[%emt 0:00:07] normal} 0-1

[Event "-chT Youth Countries 2019"]
[Site "Wuerzburg"]
[Date "2019.10.05"]
[Round "6.7"]
[White "Rempe, Mieke"]
[Black "Färber, Sophie"]
[Result "1-0"]
[ECO "C48"]
[WhiteElo "1530"]
[BlackElo "1414"]
[Annotator "NA RC"]
[PlyCount "75"]
[EventDate "2019.10.02"]
[EventType "team-tourn"]
[EventRounds "7"]
[EventCountry "GER"]
[SourceTitle "playchess.com"]
[Source "ChessBase"]
[SourceQuality "1"]
[WhiteTeam "Hamburg/Schleswig-Holstein"]
[BlackTeam "Baden 2"]
[TimeControl "40/5400+30:1800+30"]

1. e4 {[%emt 0:00:00]} e5 {[%emt 0:00:00]} 2. Nf3 {[%emt 0:00:29]} Nf6 {[%emt 0:01:05]} 3. Nc3 {[%emt 0:04:01]} Nc6 {[%emt 0:00:19]} 4. Bb5 {[%emt 0:01:23]} Bc5 {[%emt 0:01:21]} 5. O-O {[%emt 0:01:51]} O-O {[%emt 0:02:53]} 6. Nxe5 {[%emt 0:01:09]} Nxe5 {[%emt 0:00:54]} 7. d4 {[%emt 0:00:06]} Bd6 {[%emt 0:00:29]} 8. dxe5 {[%emt 0:00:40]} Bxe5 {[%emt 0:00:24]} 9. Bd3 {[%emt 0:06:39]} Re8 {[%emt 0:10:25]} 10. Ne2 {[%emt 0:05:58]} d5 {[%emt 0:21:05]} 11. f4 {[%emt 0:09:22]} Bd6 {[%emt 0:07:58]} 12. e5 {[%emt 0:03:17]} Bc5+ {[%emt 0:00:05]} 13. Kh1 {[%emt 0:00:04]} Ng4 {[%emt 0:02:34]} 14. Qe1 {[%emt 0:05:50]} c6 {[%emt 0:21:32]} 15. h3 {[%emt 0:04:03]} Ne3 {[%emt 0:08:18]} 16. Rf3 {[%emt 0:04:34]} Nf5 {[%emt 0:03:39]} 17. g4 {[%emt 0:08:34]} Nd4 {[%emt 0:01:42]} 18. Nxd4 {[%emt 0:00:59]} Bxd4 {[%emt 0:00:03]} 19. c3 {[%emt 0:00:24]} Bb6 {[%emt 0:00:08]} 20. g5 {[%emt 0:01:01]} f6 {[%emt 0:01:23]} 21. Qh4 {[%emt 0:00:33]} f5 {[%emt 0:00:18]} 22. Bd2 {[%emt 0:01:59]} Be6 {[%emt 0:00:48]} 23. Be3 {[%emt 0:03:09]} d4 {[%emt 0:01:16]} 24. cxd4 {[%emt 0:11:10]} Bd5 {[%emt 0:00:27]} 25. Raf1 {[%emt 0:00:04]} Bxd4 {[%emt 0:02:37]} 26. Bxf5 {[%emt 0:00:19]} Bxf3+ {[%emt 0:01:12]} 27. Rxf3 {[%emt 0:00:05]} g6 {[%emt 0:03:30]} 28. Bd3 {[%emt 0:00:50]} Qd5 {[%emt 0:01:06]} 29. Qf2 {[%emt 0:00:05]} Bxb2 {[%emt 0:02:33]} 30. Kh2 {[%emt 0:02:23]} Qxd3 {[%emt 0:00:47]} 31. Qxb2 {[%emt 0:00:41]} Rad8 {[%emt 0:01:21]} 32. Kg3 {[%emt 0:01:18]} Qd1 {[%emt 0:02:09]} 33. Qxb7 {[%emt 0:00:45]} Rd3 {[%emt 0:01:10]} 34. Qxc6 {[%emt 0:01:25]} Qe2 {[%emt 0:00:39]} 35. Qxe8+ {[%emt 0:00:12]} Kg7 {[%emt 0:00:04]} 36. e6 {[%emt 0:02:32]} Rxe3 {[%emt 0:00:00]} 37. Qf7+ {[%emt 0:00:00]} Kh8 {[%emt 0:00:00]} 38. Qf8# {[%emt 0:00:00] normal} 1-0

[Event "-chT Youth Countries 2019"]
[Site "Wuerzburg"]
[Date "2019.10.05"]
[Round "6.7"]
[White "Woerz, Ann-Sophie"]
[Black "Sauer, Tim"]
[Result "0-1"]
[ECO "B11"]
[WhiteElo "1500"]
[BlackElo "1597"]
[Annotator "NA RC"]
[PlyCount "126"]
[EventDate "2019.10.02"]
[EventType "team-tourn"]
[EventRounds "7"]
[EventCountry "GER"]
[SourceTitle "playchess.com"]
[Source "ChessBase"]
[SourceQuality "1"]
[WhiteTeam "Württemberg"]
[BlackTeam "Niedersachsen"]
[TimeControl "40/5400+30:1800+30"]

1. e4 {[%emt 0:00:00]} c6 {[%emt 0:00:00]} 2. Nf3 {[%emt 0:00:00]} d5 {[%emt 0:00:00]} 3. Nc3 {[%emt 0:00:00]} Bg4 {[%emt 0:00:00]} 4. h3 {[%emt 0:00:04]} Bxf3 {[%emt 0:00:00]} 5. Qxf3 {[%emt 0:00:14]} e6 {[%emt 0:00:01]} 6. d3 {[%emt 0:00:16]} Bd6 {[%emt 0:00:07]} 7. d4 {[%emt 0:00:33]} Nd7 {[%emt 0:00:53]} 8. Bd3 {[%emt 0:01:43]} Ne7 {[%emt 0:01:10]} 9. Bd2 {[%emt 0:03:36]} Qb6 {[%emt 0:03:16]} 10. e5 {[%emt 0:03:30]} Bb4 {[%emt 0:01:42]} 11. Qg4 {[%emt 0:04:30]} O-O-O {[%emt 0:10:01]} 12. O-O {[%emt 0:04:14]} Bxc3 {[%emt 0:10:53]} 13. bxc3 {[%emt 0:00:53]} Rdg8 {[%emt 0:13:35]} 14. Rfb1 {[%emt 0:02:48]} Qc7 {[%emt 0:00:32]} 15. a4 {[%emt 0:01:49]} h5 {[%emt 0:07:59]} 16. Qe2 {[%emt 0:04:01]} Nb8 {[%emt 0:01:07]} 17. a5 {[%emt 0:00:59]} g5 {[%emt 0:01:59]} 18. a6 {[%emt 0:02:51]} b6 {[%emt 0:00:14]} 19. c4 {[%emt 0:00:29]} dxc4 {[%emt 0:02:18]} 20. Bxc4 {[%emt 0:01:17]} Nf5 {[%emt 0:00:35]} 21. Qd3 {[%emt 0:04:29]} g4 {[%emt 0:03:00]} 22. d5 {[%emt 0:00:37]} gxh3 {[%emt 0:05:04]} 23. Qxh3 {[%emt 0:00:34]} cxd5 {[%emt 0:01:49]} 24. Bxd5 {[%emt 0:00:52]} exd5 {[%emt 0:00:14]} 25. Qxf5+ {[%emt 0:00:07]} Qd7 {[%emt 0:00:13]} 26. Qxd7+ {[%emt 0:01:22]} Kxd7 {[%emt 0:00:17]} 27. Bc3 {[%emt 0:00:24]} Ke6 {[%emt 0:00:12]} 28. Re1 {[%emt 0:18:43]} Rg4 {[%emt 0:04:41]} 29. Kf1 {[%emt 0:04:13]} Rhg8 {[%emt 0:00:33]} 30. g3 {[%emt 0:00:31]} Rc4 {[%emt 0:00:46]} 31. Ra3 {[%emt 0:02:32]} Rgc8 {[%emt 0:00:49]} 32. Bd2 {[%emt 0:02:50]} Rxc2 {[%emt 0:00:15]} 33. Be3 {[%emt 0:00:11]} R8c4 {[%emt 0:09:12]} 34. Bxb6 {[%emt 0:01:55]} Rc6 {[%emt 0:04:17]} 35. Bxa7 {[%emt 0:02:34]} Nxa6 {[%emt 0:00:16]} 36. Ra4 {[%emt 0:01:21]} R2c4 {[%emt 0:04:08]} 37. Rxc4 {[%emt 0:08:28]} dxc4 {[%emt 0:00:36]} 38. f4 {[%emt 0:00:59]} Kf5 {[%emt 0:02:31]} 39. Kf2 {[%emt 0:02:05]} Nb4 {[%emt 0:01:15]} 40. Rh1 {[%emt 0:01:53]} Kg6 {[%emt 0:12:45]} 41. Ke3 {[%emt 0:34:00]} c3 {[%emt 0:30:44]} 42. Ke2 {[%emt 0:00:51]} Ra6 {[%emt 0:00:00]} 43. Be3 {[%emt 0:00:00]} Ra2+ {[%emt 0:00:00]} 44. Kf3 {[%emt 0:00:00]} c2 {[%emt 0:00:00]} 45. Ke4 {[%emt 0:00:00]} Ra3 {[%emt 0:01:36]} 46. f5+ {[%emt 0:00:00]} Kg7 {[%emt 0:00:10]} 47. Rc1 {[%emt 0:00:00]} Rb3 {[%emt 0:01:02]} 48. Bd2 {[%emt 0:00:00]} Rb1 {[%emt 0:00:21]} 49. Ke3 {[%emt 0:00:00]} Rb3+ {[%emt 0:00:39]} 50. Ke2 {[%emt 0:00:00]} Nc6 {[%emt 0:00:32]} 51. f6+ {[%emt 0:04:42]} Kg6 {[%emt 0:00:35]} 52. Bf4 {[%emt 0:01:18]} Nd4+ {[%emt 0:00:19]} 53. Kf2 {[%emt 0:01:04]} Rb2 {[%emt 0:00:29]} 54. e6 {[%emt 0:04:33]} fxe6 {[%emt 0:00:11]} 55. Be5 {[%emt 0:00:34]} Rb1 {[%emt 0:00:30]} 56. Bf4 {[%emt 0:05:50]} Rxc1 {[%emt 0:00:10]} 57. Bxc1 {[%emt 0:00:05]} Nb3 {[%emt 0:00:06]} 58. Bb2 {[%emt 0:00:35]} c1=Q {[%emt 0:00:20]} 59. Bxc1 {[%emt 0:00:25]} Nxc1 {[%emt 0:00:06]} 60. Kf3 {[%emt 0:00:23]} Kxf6 {[%emt 0:00:14]} 61. Ke4 {[%emt 0:00:19]} Ne2 {[%emt 0:00:16]} 62. Kf3 {[%emt 0:00:21]} Nxg3 {[%emt 0:00:20]} 63. Kxg3 {[%emt 0:00:38]} Ke5 {normal} 0-1

[Event "-chT Youth Countries 2019"]
[Site "Wuerzburg"]
[Date "2019.10.05"]
[Round "6.8"]
[White "Pohle, Saskia"]
[Black "Fischer, Darja"]
[Result "1-0"]
[ECO "B18"]
[WhiteElo "1716"]
[BlackElo "1604"]
[Annotator "NA"]
[PlyCount "77"]
[EventDate "2019.10.02"]
[EventType "team-tourn"]
[EventRounds "7"]
[EventCountry "GER"]
[SourceTitle "playchess.com"]
[Source "ChessBase"]
[SourceQuality "1"]
[WhiteTeam "Sachsen"]
[BlackTeam "Baden 1"]
[TimeControl "40/5400+30:1800+30"]

1. e4 {[%emt 0:00:00]} c6 {[%emt 0:00:00]} 2. d4 {[%emt 0:00:00]} d5 {[%emt 0:00:00]} 3. Nd2 {[%emt 0:00:12]} dxe4 {[%emt 0:00:05]} 4. Nxe4 {[%emt 0:00:05]} Bf5 {[%emt 0:00:23]} 5. Ng3 {[%emt 0:00:07]} Bg6 {[%emt 0:00:06]} 6. h4 {[%emt 0:00:24]} h6 {[%emt 0:00:35]} 7. h5 {[%emt 0:00:10]} Bh7 {[%emt 0:00:09]} 8. Nf3 {[%emt 0:00:08]} Nd7 {[%emt 0:00:54]} 9. Bd3 {[%emt 0:00:29]} Bxd3 {[%emt 0:00:52]} 10. Qxd3 {[%emt 0:00:07]} Ngf6 {[%emt 0:01:24]} 11. Bd2 {[%emt 0:00:34]} e6 {[%emt 0:01:25]} 12. O-O-O {[%emt 0:00:46]} Bd6 {[%emt 0:01:23]} 13. Ne4 {[%emt 0:00:52]} Bc7 {[%emt 0:00:50]} 14. Kb1 {[%emt 0:02:20]} Qe7 {[%emt 0:06:00]} 15. Rde1 {[%emt 0:19:00]} O-O-O {[%emt 0:06:16]} 16. c4 {[%emt 0:03:28]} Kb8 {[%emt 0:04:46]} 17. Bc3 {[%emt 0:03:09]} Nxe4 {[%emt 0:05:09]} 18. Qxe4 {[%emt 0:00:08]} Nf6 {[%emt 0:01:55]} 19. Qe2 {[%emt 0:00:18]} Rhe8 {[%emt 0:05:18]} 20. Ka1 {[%emt 0:07:30]} Ka8 {[%emt 0:06:18]} 21. b4 {[%emt 0:07:20]} Rb8 {[%emt 0:05:17]} 22. Ne5 {[%emt 0:10:26]} Nd7 {[%emt 0:04:44]} 23. Rb1 {[%emt 0:03:21]} Nxe5 {[%emt 0:07:09]} 24. dxe5 {[%emt 0:00:09]} Qf8 {[%emt 0:07:32]} 25. b5 {[%emt 0:04:14]} c5 {[%emt 0:05:33]} 26. a4 {[%emt 0:02:57]} Bd8 {[%emt 0:03:49]} 27. a5 {[%emt 0:03:03]} f6 {[%emt 0:01:14]} 28. f4 {[%emt 0:02:31]} f5 {[%emt 0:02:30]} 29. Rhd1 {[%emt 0:07:29]} Be7 {[%emt 0:03:26]} 30. a6 {[%emt 0:01:09]} Red8 {[%emt 0:01:48]} 31. Ba5 {[%emt 0:04:17]} Rxd1 {[%emt 0:01:01]} 32. Rxd1 {[%emt 0:00:13]} Qe8 {[%emt 0:06:14]} 33. Qf3 {[%emt 0:00:48]} Qc8 {[%emt 0:01:29]} 34. g3 {[%emt 0:01:46]} Qe8 {[%emt 0:04:14]} 35. Bc7 {[%emt 0:00:25]} Qc8 {[%emt 0:00:07]} 36. Bxb8 {[%emt 0:00:16]} Kxb8 {[%emt 0:00:19]} 37. Qxb7+ {[%emt 0:00:50]} Qxb7 {[%emt 0:00:47]} 38. axb7 {[%emt 0:00:07]} Kc7 {[%emt 0:00:16]} 39. Rd7+ {[%emt 0:00:33] normal} 1-0

[Event "-chT Youth Countries 2019"]
[Site "Wuerzburg"]
[Date "2019.10.05"]
[Round "6.8"]
[White "Sereda, Yaroslava"]
[Black "Richter, Johanna"]
[Result "1-0"]
[ECO "B09"]
[WhiteElo "1687"]
[BlackElo "942"]
[Annotator "NA"]
[PlyCount "123"]
[EventDate "2019.10.02"]
[EventType "team-tourn"]
[EventRounds "7"]
[EventCountry "GER"]
[SourceTitle "playchess.com"]
[Source "ChessBase"]
[SourceQuality "1"]
[WhiteTeam "Nordrhein-Westfalen"]
[BlackTeam "Rheinland-Pfalz"]
[TimeControl "40/5400+30:1800+30"]

1. e4 {[%emt 0:00:00]} d6 {[%emt 0:00:00]} 2. d4 {[%emt 0:00:00]} Nf6 {[%emt 0:00:00]} 3. Nc3 {[%emt 0:00:15]} g6 {[%emt 0:00:06]} 4. f4 {[%emt 0:01:11]} Bg7 {[%emt 0:00:31]} 5. Nf3 {[%emt 0:00:17]} O-O {[%emt 0:00:31]} 6. Be2 {[%emt 0:00:40]} Nc6 {[%emt 0:01:25]} 7. O-O {[%emt 0:00:25]} Bg4 {[%emt 0:01:52]} 8. h3 {[%emt 0:03:03]} Bxf3 {[%emt 0:00:43]} 9. Bxf3 {[%emt 0:00:09]} e5 {[%emt 0:00:38]} 10. Ne2 {[%emt 0:15:17]} Re8 {[%emt 0:05:58]} 11. d5 {[%emt 0:05:53]} Nd4 {[%emt 0:03:48]} 12. Nxd4 {[%emt 0:03:01]} exd4 {[%emt 0:00:12]} 13. Qd3 {[%emt 0:02:07]} Qe7 {[%emt 0:02:24]} 14. b3 {[%emt 0:17:52]} Nxe4 {[%emt 0:00:45]} 15. Re1 {[%emt 0:00:39]} Nc5 {[%emt 0:02:06]} 16. Rxe7 {[%emt 0:00:36]} Nxd3 {[%emt 0:00:14]} 17. Rxe8+ {[%emt 0:00:07]} Rxe8 {[%emt 0:00:54]} 18. cxd3 {[%emt 0:00:11]} Re1+ {[%emt 0:07:39]} 19. Kf2 {[%emt 0:00:55]} Re7 {[%emt 0:01:26]} 20. Bb2 {[%emt 0:01:11]} Re3 {[%emt 0:02:32]} 21. Be2 {[%emt 0:02:38]} Bf6 {[%emt 0:04:01]} 22. g3 {[%emt 0:01:02]} c5 {[%emt 0:02:00]} 23. dxc6 {[%emt 0:01:33]} bxc6 {[%emt 0:00:20]} 24. Rc1 {[%emt 0:00:34]} c5 {[%emt 0:01:40]} 25. b4 {[%emt 0:01:50]} cxb4 {[%emt 0:01:37]} 26. Rc4 {[%emt 0:00:14]} a5 {[%emt 0:01:12]} 27. Bxd4 {[%emt 0:00:54]} Bxd4 {[%emt 0:02:04]} 28. Rxd4 {[%emt 0:00:32]} Re6 {[%emt 0:01:02]} 29. Rd5 {[%emt 0:00:49]} a4 {[%emt 0:02:25]} 30. Rb5 {[%emt 0:03:13]} b3 {[%emt 0:00:47]} 31. axb3 {[%emt 0:00:18]} axb3 32. Rxb3 Kg7 {[%emt 0:02:41]} 33. Rb6 {[%emt 0:01:22]} d5 {[%emt 0:02:19]} 34. Rxe6 {[%emt 0:00:32]} fxe6 {[%emt 0:00:04]} 35. Ke3 {[%emt 0:00:09]} Kf6 {[%emt 0:00:07]} 36. Kd4 {[%emt 0:00:27]} h6 {[%emt 0:00:58]} 37. Kc5 {[%emt 0:01:05]} Kf5 {[%emt 0:01:01]} 38. Kd6 {[%emt 0:00:30]} Kf6 {[%emt 0:00:18]} 39. Bg4 {[%emt 0:00:17]} g5 {[%emt 0:01:50]} 40. fxg5+ {[%emt 0:00:32]} hxg5 {[%emt 0:00:09]} 41. Bxe6 {[%emt 0:30:11]} d4 {[%emt 0:30:18]} 42. Kd5 {[%emt 0:00:12]} Ke7 {[%emt 0:00:43]} 43. Bg4 {[%emt 0:00:20]} Kd8 {[%emt 0:01:41]} 44. Kxd4 {[%emt 0:00:10]} Kc7 {[%emt 0:00:11]} 45. Ke5 {[%emt 0:00:07]} Kd8 {[%emt 0:00:49]} 46. Kd6 {[%emt 0:00:29]} Ke8 {[%emt 0:00:33]} 47. Kc7 {[%emt 0:00:00]} Ke7 {[%emt 0:00:00]} 48. d4 {[%emt 0:00:00]} Kf6 {[%emt 0:02:06]} 49. d5 {[%emt 0:00:04]} Ke5 {[%emt 0:01:52]} 50. d6 {[%emt 0:00:08]} Ke4 {[%emt 0:00:31]} 51. d7 {[%emt 0:00:28]} Ke5 {[%emt 0:02:38]} 52. d8=Q {[%emt 0:00:36]} Ke4 {[%emt 0:00:52]} 53. Qe7+ {[%emt 0:00:13]} Kd5 {[%emt 0:00:32]} 54. Bf3+ {[%emt 0:00:38]} Kd4 {[%emt 0:00:44]} 55. Qe4+ {[%emt 0:00:13]} Kc3 {[%emt 0:00:40]} 56. Qd5 {[%emt 0:00:45]} Kc2 {[%emt 0:00:46]} 57. Be4+ {[%emt 0:00:09]} Kc1 {[%emt 0:00:44]} 58. Kb6 {[%emt 0:00:25]} Kb2 {[%emt 0:00:49]} 59. Qc4 {[%emt 0:00:13]} g4 {[%emt 0:01:18]} 60. Qc2+ {[%emt 0:00:15]} Ka3 {[%emt 0:00:37]} 61. Bd5 {[%emt 0:00:57]} gxh3 {[%emt 0:00:32]} 62. Qb3# {[%emt 0:00:10] normal} 1-0